bitfinex-derivatives/quotes_ETHF0:USTF0_20250214
["timestamp","ask_amount","ask_price","bid_price","bid_amount"]
[1739554201954,0.00548045,2738.8,2738.4,3.2078]
[1739554202152,0.73027,2738.3,2738.2,0.00548045]
[1739554202349,3.55373307,2738.3,2738.2,0.00548045]
[1739554202650,0.73026,2738.4,2738.2,0.00548045]
[1739554202857,40.8,2738.3,2738.2,0.00548045]
[1739554203757,41.53027,2738.3,2738.2,0.00548045]
[1739554205855,44.73807,2738.3,2738.2,0.00548045]
[1739554206550,0.73046,2737.6,2737.5,1.0373]
[1739554206756,0.73046,2737.6,2737.1,4.9188]
[1739554206757,0.73051,2737.4,2737.3,1.1046]
[1739554206950,2.82346307,2737.5,2736.8,3.2078]
[1739554207162,0.73067,2736.8,2736.7,1.0276]
[1739554207363,41.53067,2736.8,2736.7,1.0276]
[1739554207555,40.8,2736.8,2736.7,1.7583]
[1739554208057,40.8,2736.8,2736.7,4.9661]
[1739554209255,40.8,2736.8,2736.7,4.2354]
[1739554210359,40.8,2736.8,2736.7,1.0276]
[1739554210564,41.53067,2736.8,2736.7,1.0276]
[1739554210753,40.8,2736.8,2736.7,1.7583]
[1739554210955,40.8,2736.8,2736.7,4.9661]
[1739554211155,40.8,2736.8,2736.7,4.2354]
[1739554211461,41.53067,2736.8,2736.7,1.0276]
[1739554213058,40.8,2736.8,2736.7,1.0276]
[1739554214556,41.53067,2736.8,2736.7,1.0276]
[1739554215154,40.8,2736.8,2736.7,1.0276]
[1739554215865,40.8,2736.8,2736.7,1.7583]
[1739554216359,40.8,2736.8,2736.7,1.0276]
[1739554216664,41.53067,2736.8,2736.7,1.0276]
[1739554216861,40.8,2736.8,2736.7,1.0276]
[1739554217063,40.8,2736.8,2736.5,3.21328045]
[1739554217361,0.73072,2736.6,2736.5,0.00548045]
[1739554218160,41.53072,2736.6,2736.5,0.00548045]
[1739554218767,40.8,2736.6,2736.3,0.73079]
[1739554218966,0.73078,2736.4,2736.3,0.73079]
[1739554219169,3.2078,2736.5,2735.8,4.2947]
[1739554219470,0.73085,2736.2,2736.1,0.73084]
[1739554220068,1.82725,2736.0,2735.1,3.2078]
[1739554220364,1.82715,2736.1,2735.1,3.2078]
[1739554220365,0.05203241,2735.6,2735.2,2.0811]
[1739554220573,40.8,2735.5,2735.4,0.73102]
[1739554221367,40.85203241,2735.5,2735.4,0.73102]
[1739554222268,40.85203241,2735.5,2735.2,2.0811]
[1739554222462,0.05203241,2735.4,2735.2,2.0811]
[1739554222662,0.05203241,2735.4,2735.3,0.73107]
[1739554223270,0.00548045,2735.6,2735.2,5.63462696]
[1739554223572,1.711,2736.3,2736.1,0.73085]
[1739554223773,40.8,2736.2,2736.1,0.73086]
[1739554223973,40.8,2736.2,2736.1,3.93866]
[1739554224167,40.8,2736.2,2736.0,0.73087]
[1739554224472,40.8,2736.2,2735.8,0.997]
[1739554224767,40.8,2736.2,2736.1,0.73086]
[1739554225168,40.8,2736.2,2735.9,3.2078]
[1739554225670,41.53084,2736.2,2735.9,3.2078]
[1739554225866,40.8,2736.2,2735.9,3.2078]
[1739554226075,0.73088,2736.0,2735.9,3.2078]
[1739554226466,0.73086,2736.1,2735.9,3.2078]
[1739554226669,40.8,2736.2,2735.8,0.00548045]
[1739554226966,0.73091,2735.9,2735.8,0.00548045]
[1739554227170,4.28443696,2735.9,2735.8,0.00548045]
[1739554227667,45.08443696,2735.9,2735.8,0.00548045]
[1739554229167,41.53091,2735.9,2735.8,0.73642045]
[1739554230077,40.8,2735.9,2735.8,0.73642045]
[1739554231169,40.8,2735.9,2735.8,1.75632045]
[1739554232684,0.00548045,2736.4,2735.8,12.28990741]
[1739554232973,0.00548045,2736.4,2736.3,0.7308]
[1739554233380,0.00548045,2736.4,2736.3,1.8144]
[1739554233671,40.80548045,2736.4,2736.3,1.8144]
[1739554236276,40.80548045,2736.4,2736.3,1.0836]
[1739554236575,40.80548045,2736.4,2736.2,0.73083]
[1739554236786,40.80548045,2736.4,2736.1,0.73085]
[1739554237368,40.80548045,2736.4,2735.9,4.2823]
[1739554237781,40.80548045,2736.4,2736.2,0.73082]
[1739554238675,40.80548045,2736.4,2736.1,0.73084]
[1739554239080,40.80548045,2736.4,2736.2,0.73082]
[1739554239277,40.80548045,2736.4,2736.3,0.7308]
[1739554239478,40.80548045,2736.4,2736.2,3.93861]
[1739554239776,40.80548045,2736.4,2736.2,3.2078]
[1739554239981,41.53627045,2736.4,2736.2,3.2078]
[1739554240181,40.80548045,2736.4,2736.2,3.93862]
[1739554240384,40.80548045,2736.4,2736.2,3.2078]
[1739554240682,40.80548045,2736.4,2736.3,0.7308]
[1739554241379,0.00548045,2736.4,2736.3,0.7308]
[1739554241578,3.50515415,2737.6,2737.0,0.7306]
[1739554241579,0.73054,2737.3,2737.0,0.7306]
[1739554241881,40.8,2737.2,2737.0,0.73059]
[1739554242583,40.8,2737.2,2736.8,3.2078]
[1739554243084,40.8,2737.2,2736.8,3.93846]
[1739554243277,0.7306,2737.1,2736.8,3.2078]
[1739554243479,40.8,2737.2,2737.0,0.73061]
[1739554243781,40.8,2737.2,2736.8,3.2078]
[1739554244480,3.2078,2737.0,2736.5,3.2078]
[1739554244883,0.7307,2736.7,2736.5,3.93855]
[1739554245079,4.9188,2737.0,2736.3,1.0208]
[1739554245383,3.55352696,2737.1,2736.7,0.73069]
[1739554245384,0.73065,2736.9,2736.7,0.73069]
[1739554245682,3.2078,2737.1,2736.9,0.73064]
[1739554245683,3.9384,2737.1,2736.9,0.73064]
[1739554245879,3.2078,2737.1,2736.8,0.73065]
[1739554246091,0.73062,2737.0,2736.6,3.2078]
[1739554246480,3.2078,2737.1,2736.6,3.2078]
[1739554246989,0.73062,2737.0,2736.8,0.73065]
[1739554247376,0.73062,2737.0,2736.9,0.73062]
[1739554247581,0.73062,2737.0,2736.6,3.2078]
[1739554248185,0.73062,2737.0,2736.9,0.73064]
[1739554248383,6.76132696,2737.1,2736.6,3.2078]
[1739554248584,6.76132696,2737.1,2736.7,0.73068]
[1739554248780,0.73062,2737.0,2736.5,5.03466]
[1739554248983,3.2078,2737.1,2736.5,3.2078]
[1739554249189,40.8,2736.6,2736.5,3.93855]
[1739554252494,0.00548045,2737.4,2737.3,0.73054]
[1739554252792,5.26352696,2738.3,2737.3,3.2078]
[1739554252793,1.0609,2738.2,2737.3,3.2078]
[1739554253095,1.0609,2738.2,2737.2,4.8802]
[1739554253096,0.73023,2738.5,2738.0,3.93812]
[1739554253290,0.7302,2738.6,2738.1,0.73031]
[1739554253488,40.8,2738.2,2738.1,0.73031]
[1739554253890,40.8,2738.2,2738.0,3.2078]
[1739554254091,40.8,2738.2,2738.1,0.73032]
[1739554254593,40.8,2738.2,2738.0,3.2078]
[1739554254799,40.8,2738.2,2737.9,0.00548045]
[1739554255097,41.53032,2738.2,2737.9,0.00548045]
[1739554255794,40.8,2738.2,2737.9,0.00548045]
[1739554255994,41.53031,2738.2,2737.9,0.00548045]
[1739554256301,40.8,2738.2,2737.9,0.00548045]
[1739554256689,40.8,2738.2,2738.0,0.73034]
[1739554256897,40.8,2738.2,2737.9,0.00548045]
[1739554257798,40.8,2738.2,2738.1,0.73032]
[1739554258000,40.8,2738.2,2738.0,0.73033]
[1739554258194,40.8,2738.2,2738.0,0.73035]
[1739554258599,40.8,2738.2,2738.1,0.73032]
[1739554259595,40.8,2738.2,2738.0,1.7613]
[1739554259800,40.8,2738.2,2738.0,2.49165]
[1739554259997,40.8,2738.2,2738.0,1.62145]
[1739554260204,0.73031,2738.2,2737.9,0.00548045]
[1739554260404,3.21328045,2738.4,2737.9,0.00548045]
[1739554260705,40.8,2738.0,2737.9,0.00548045]
[1739554261598,40.8,2738.0,2737.9,0.73586045]
[1739554261801,40.8,2738.0,2737.9,3.94366045]
[1739554262000,40.8,2738.0,2737.9,9.20618741]
[1739554262203,0.00548045,2738.4,2738.3,0.73027]
[1739554262407,0.00548045,2738.4,2738.3,3.93807]
[1739554262601,40.80548045,2738.4,2738.3,3.93807]
[1739554265406,40.80548045,2738.4,2738.3,9.93807]
[1739554266205,0.867,2739.6,2738.5,1.82553]
[1739554266406,0.72995,2739.5,2739.0,3.93786]
[1739554266599,0.867,2739.6,2739.0,3.2078]
[1739554266797,3.93771,2739.7,2739.2,0.73003]
[1739554267105,0.73006,2739.1,2739.0,3.2078]
[1739554267297,3.2078,2739.3,2738.6,0.8612]
[1739554267502,0.73012,2738.9,2738.6,0.8612]
[1739554267702,40.8,2738.7,2738.6,0.8612]
[1739554268616,40.8,2738.7,2738.6,1.59139]
[1739554268806,40.8,2738.7,2738.6,3.44859]
[1739554270713,0.72997,2739.5,2739.1,0.73004]
[1739554271009,0.00548045,2739.7,2739.3,3.2078]
[1739554271212,40.8,2739.6,2739.5,3.2078]
[1739554272904,40.8,2739.6,2739.5,3.93775]
[1739554273101,40.8,2739.6,2739.5,3.2078]
[1739554273411,40.8,2739.6,2739.3,0.00548045]
[1739554273412,0.72998,2739.4,2739.3,0.00548045]
[1739554273615,41.7306,2739.6,2739.3,0.00548045]
[1739554273813,0.72998,2739.4,2739.3,0.00548045]
[1739554274208,41.52998,2739.4,2739.3,0.00548045]
[1739554274413,40.8,2739.4,2739.3,0.00548045]
[1739554274911,41.52997,2739.4,2739.3,0.00548045]
[1739554276111,44.73777,2739.4,2739.3,0.00548045]
[1739554280416,41.52997,2739.4,2739.3,0.00548045]
[1739554281115,44.73777,2739.4,2739.3,0.00548045]
[1739554281309,41.52997,2739.4,2739.3,0.00548045]
[1739554282415,41.52997,2739.4,2739.3,1.65148045]
[1739554282610,41.52997,2739.4,2739.3,0.92148045]
[1739554282913,40.8,2739.4,2739.3,4.85928045]
[1739554284214,40.8,2739.4,2739.3,10.85928045]
[1739554284817,0.00548045,2739.7,2739.3,10.12928045]
[1739554285021,0.9006,2740.5,2739.6,3.2078]
[1739554285217,3.2078,2740.6,2739.9,3.2078]
[1739554285415,40.8,2740.4,2739.9,3.2078]
[1739554285616,0.72981,2740.0,2739.9,3.2078]
[1739554285816,0.72981,2740.1,2739.9,3.2078]
[1739554286123,40.8,2740.4,2739.9,3.2078]
[1739554286323,0.73524045,2740.3,2740.0,0.8602]
[1739554286721,0.00548045,2740.3,2740.0,0.8602]
[1739554287023,0.00548045,2740.3,2739.9,3.2078]
[1739554287214,0.72981,2740.0,2739.9,3.2078]
[1739554287415,0.00548045,2740.3,2739.9,3.2078]
[1739554287416,0.7298,2740.1,2739.9,3.2078]
[1739554288123,0.72981,2740.1,2739.9,3.2078]
[1739554288325,0.72977,2740.2,2739.9,3.2078]
[1739554288527,0.7298,2740.1,2739.9,3.2078]
[1739554288727,0.00548045,2740.3,2739.9,3.2078]
[1739554289027,0.73523045,2740.3,2739.9,3.93762]
[1739554289729,0.73523045,2740.3,2740.0,0.72981]
[1739554289934,0.00548045,2740.3,2739.9,3.2078]
[1739554290228,0.73522045,2740.3,2740.0,0.72981]
[1739554290430,0.73522045,2740.3,2739.9,3.2078]
[1739554290723,0.73522045,2740.3,2740.1,0.72978]
[1739554290918,0.00548045,2740.3,2739.9,3.2078]
[1739554291228,0.00548045,2740.3,2740.2,0.72976]
[1739554292329,0.00548045,2740.3,2740.2,3.93756]
[1739554293719,0.00548045,2740.3,2740.2,3.2078]
[1739554294928,40.8,2740.4,2740.3,0.72973]
[1739554295128,40.8,2740.4,2740.3,1.30093]
[1739554295330,0.1917,2741.1,2740.3,1.30093]
[1739554295331,0.72962,2740.8,2740.3,1.1287]
[1739554295531,1.82361,2741.4,2740.7,3.55352696]
[1739554295927,0.72956,2741.0,2740.7,4.28314696]
[1739554296121,0.72957,2740.9,2740.8,0.00548045]
[1739554296633,0.72956,2741.0,2740.8,0.00548045]
[1739554297132,40.80362001,2741.3,2740.8,0.00548045]
[1739554297334,0.72949,2741.2,2740.8,0.73507045]
[1739554297528,0.72949,2741.2,2740.9,0.5845]
[1739554297729,0.72949,2741.2,2740.9,1.1197]
[1739554297931,41.53311001,2741.3,2740.9,1.84925]
[1739554298144,40.80362001,2741.3,2741.0,3.7772]
[1739554298431,40.80362001,2741.3,2741.0,4.50673]
[1739554298639,40.80362001,2741.3,2741.1,0.72952]
[1739554299033,40.80362001,2741.3,2741.0,4.50673]
[1739554299231,40.80362001,2741.3,2741.0,3.7772]
[1739554299433,40.80362001,2741.3,2741.0,7.33072696]
[1739554299626,41.53310001,2741.3,2741.0,3.7772]
[1739554299932,40.80362001,2741.3,2740.8,0.00548045]
[1739554300239,40.80362001,2741.3,2740.8,1.11958045]
[1739554300434,0.72957,2741.0,2740.8,1.11958045]
[1739554300835,40.80362001,2741.3,2740.8,0.58438045]
[1739554301035,0.72957,2740.9,2740.8,0.00548045]
[1739554301432,41.52957,2740.9,2740.8,0.00548045]
[1739554302729,40.8,2740.9,2740.8,0.00548045]
[1739554302937,40.8,2740.9,2740.8,0.73508045]
[1739554303442,40.8,2740.9,2740.8,0.00548045]
[1739554303839,40.8,2740.9,2740.8,0.73508045]
[1739554304541,40.8,2740.9,2740.8,0.00548045]
[1739554305137,41.52957,2740.9,2740.8,0.00548045]
[1739554307736,41.52957,2740.9,2740.1,3.2078]
[1739554307737,0.72976,2740.2,2740.1,3.2078]
[1739554307941,5.03206,2740.5,2739.8,5.5034]
[1739554308135,0.72984,2739.9,2739.8,3.7974]
[1739554308532,1.82438,2740.3,2739.8,3.7974]
[1739554308533,0.72983,2740.0,2739.8,3.7974]
[1739554308744,3.2078,2740.5,2739.8,3.7974]
[1739554308943,40.8,2739.9,2739.8,8.08077696]
[1739554309238,40.8,2739.9,2739.8,7.35092696]
[1739554309436,40.8,2739.9,2739.8,8.08079696]
[1739554309635,40.8,2739.9,2739.8,7.35092696]
[1739554310239,40.8,2739.9,2739.8,3.7974]
[1739554311545,41.52984,2739.9,2739.8,3.7974]
[1739554312037,40.8,2739.9,2739.8,7.35092696]
[1739554312442,41.52984,2739.9,2739.8,7.35092696]
[1739554312941,0.72984,2739.9,2739.8,3.7974]
[1739554313136,0.72984,2739.9,2739.8,0.5896]
[1739554313540,41.52984,2739.9,2739.8,0.5896]
[1739554313737,41.52984,2739.9,2739.8,3.7974]
[1739554318639,41.52984,2739.9,2739.8,0.5896]
[1739554319642,41.52984,2739.9,2739.8,3.7974]
[1739554320347,40.8,2739.9,2739.8,7.35092696]
[1739554320649,1.82407,2740.7,2739.8,13.35092696]
[1739554320849,0.72973,2740.3,2740.2,3.2078]
[1739554321042,0.72984,2739.9,2739.8,2.2956]
[1739554321352,0.72984,2739.9,2739.6,0.00548045]
[1739554321353,0.72989,2739.7,2739.6,0.00548045]
[1739554321851,41.52989,2739.7,2739.6,0.00548045]
[1739554322754,41.52989,2739.7,2739.6,0.59108045]
[1739554323350,40.8,2739.7,2739.6,2.29708045]
[1739554323745,0.00548045,2739.9,2739.6,8.29708045]
[1739554324056,0.00548045,2739.9,2739.8,6.03788149]
[1739554326547,0.00548045,2739.9,2739.8,6.76775149]
[1739554326950,0.00548045,2739.9,2739.8,6.03788149]
[1739554327657,0.00548045,2739.9,2739.8,6.76775149]
[1739554328359,0.73532045,2739.9,2739.8,7.74388149]
[1739554328555,0.00548045,2739.9,2739.8,7.74388149]
[1739554329458,3.2078,2740.4,2739.8,7.74388149]
[1739554329858,0.7298,2740.1,2739.8,8.47373149]
[1739554330055,40.8,2740.1,2739.8,7.74388149]
[1739554330257,40.8,2740.1,2739.9,0.72984]
[1739554330458,40.8,2740.1,2739.8,7.74388149]
[1739554330762,0.72983,2740.0,2739.8,7.74388149]
[1739554331158,0.72984,2739.9,2739.8,3.2078]
[1739554331349,0.72987,2739.8,2739.7,0.5618]
[1739554331856,0.72989,2739.7,2739.6,0.00548045]
[1739554332160,0.73011,2738.9,2738.8,2.286]
[1739554332354,41.53011,2738.9,2738.8,2.286]
[1739554332756,0.73013,2738.8,2738.7,3.2078]
[1739554332957,40.8,2738.9,2738.7,3.2078]
[1739554333556,40.8,2738.9,2738.8,0.5742]
[1739554334456,40.8,2738.9,2738.8,1.30433]
[1739554336170,0.72993,2739.6,2739.1,0.73005]
[1739554336363,0.1989,2739.7,2739.1,3.2078]
[1739554336564,0.313,2740.0,2739.1,3.2078]
[1739554336862,3.2078,2739.9,2739.3,3.2078]
[1739554337073,0.72995,2739.5,2739.4,0.5887]
[1739554337259,0.72995,2739.5,2739.3,3.2078]
[1739554337570,0.72995,2739.5,2739.1,1.706]
[1739554337571,0.73001,2739.3,2739.1,1.706]
[1739554338054,40.9991,2739.5,2738.9,3.7622]
[1739554338260,40.9991,2739.5,2738.9,5.4682]
[1739554338764,0.73005,2739.2,2738.9,5.4682]
[1739554338970,40.9991,2739.5,2738.9,5.4682]
[1739554339265,0.73005,2739.2,2738.9,6.19831]
[1739554339456,0.73005,2739.2,2738.9,5.4682]
[1739554339662,0.73003,2739.2,2738.9,9.74525974]
[1739554339961,0.73003,2739.2,2738.9,9.01515974]
[1739554340668,0.73002,2739.3,2738.9,9.74524974]
[1739554340873,0.73002,2739.3,2738.9,9.74525974]
[1739554341063,0.73003,2739.2,2738.9,9.74525974]
[1739554341261,0.73003,2739.2,2738.9,9.01515974]
[1739554341564,4.9138,2740.2,2738.9,9.01515974]
[1739554341767,0.72981,2740.0,2739.6,0.72991]
[1739554341961,0.1994,2740.1,2739.6,0.5594]
[1739554342161,0.72989,2739.7,2739.6,0.5594]
[1739554342362,0.72988,2739.8,2739.6,0.5594]
[1739554342667,0.72985,2739.9,2739.6,0.5594]
[1739554342868,0.72989,2739.8,2739.6,0.5594]
[1739554343166,44.0078,2740.0,2739.6,1.2893]
[1739554343763,44.0078,2740.0,2739.7,0.72988]
[1739554343764,0.72985,2739.9,2739.7,0.72988]
[1739554344360,40.8,2740.0,2739.7,0.72988]
[1739554344560,41.52984,2740.0,2739.7,0.72988]
[1739554344756,40.8,2740.0,2739.7,0.72988]
[1739554344965,0.72985,2739.9,2739.7,0.72988]
[1739554345167,0.72988,2739.8,2739.6,1.28931]
[1739554345472,0.72991,2739.7,2739.5,0.72993]
[1739554346171,44.0078,2740.0,2739.2,3.2078]
[1739554346376,3.2078,2739.7,2739.1,1.706]
[1739554346674,3.2078,2739.7,2739.1,2.43604]
[1739554346675,0.73002,2739.3,2739.1,2.43604]
[1739554346967,0.73002,2739.3,2739.2,0.73003]
[1739554347267,0.313,2739.6,2739.1,1.706]
[1739554347467,0.73,2739.3,2739.1,1.706]
[1739554347673,0.73003,2739.2,2739.1,1.706]
[1739554347868,0.73003,2739.2,2739.1,2.43605]
[1739554348269,41.53003,2739.2,2739.1,2.43605]
[1739554348575,40.8,2739.2,2739.1,2.43605]
[1739554350074,3.2078,2740.0,2739.6,0.72991]
[1739554350266,0.199,2740.2,2739.3,6.75475974]
[1739554350467,40.8,2739.7,2739.4,1.1448]
[1739554350672,40.8,2739.7,2739.6,3.93772]
[1739554350871,40.8,2739.7,2739.6,3.2078]
[1739554351184,41.52989,2739.7,2739.6,3.2078]
[1739554351972,40.8,2739.7,2739.6,3.93772]
[1739554352972,40.8,2739.7,2739.6,5.64272]
[1739554354080,40.8,2739.7,2739.6,9.18967974]
[1739554354771,0.00362001,2740.3,2740.2,0.72976]
[1739554355168,0.00362001,2740.3,2740.1,4.9128]
[1739554355372,40.80362001,2740.3,2740.2,1.28076]
[1739554356278,40.80362001,2740.3,2740.2,0.551]
[1739554356574,40.80362001,2740.3,2740.2,1.28076]
[1739554356881,40.80362001,2740.3,2740.2,0.551]
[1739554357378,40.80362001,2740.3,2740.2,1.28076]
[1739554358071,40.80362001,2740.3,2740.2,0.551]
[1739554358265,40.80362001,2740.3,2740.2,1.28076]
[1739554358970,40.80362001,2740.3,2740.2,0.551]
[1739554359277,0.72971,2740.4,2740.2,0.551]
[1739554359278,0.72941,2741.6,2741.2,0.72948]
[1739554359572,1.82316,2742.1,2741.5,2.82780012]
[1739554359573,3.7199,2742.1,2741.5,2.82780012]
[1739554359772,40.8,2742.0,2741.5,2.82780012]
[1739554360079,0.72935,2741.8,2741.5,2.82780012]
[1739554360273,40.8,2742.0,2741.5,2.82780012]
[1739554360479,0.72934,2741.8,2741.5,2.82780012]
[1739554360674,0.00548045,2741.9,2741.5,2.82780012]
[1739554360882,0.00548045,2741.9,2741.5,3.40640012]
[1739554361079,0.00548045,2741.9,2741.6,0.72939]
[1739554361275,0.00548045,2741.9,2741.8,0.72933]
[1739554361475,0.00548045,2741.9,2741.7,0.72935]
[1739554361678,0.73480045,2741.9,2741.5,1.8525]
[1739554362182,0.00548045,2741.9,2741.6,0.72939]
[1739554362384,0.72935,2741.8,2741.5,1.1231]
[1739554362683,0.73480045,2741.9,2741.5,1.85251]
[1739554363184,0.72938,2741.7,2741.5,1.1231]
[1739554363371,0.00548045,2741.9,2741.5,1.1231]
[1739554363577,0.00548045,2741.9,2741.6,0.72938]
[1739554363776,0.00548045,2741.9,2741.5,1.1231]
[1739554363983,0.00548045,2741.9,2741.7,0.72936]
[1739554364178,0.00548045,2741.9,2741.5,1.1231]
[1739554364386,0.00548045,2741.9,2741.8,0.72933]
[1739554367579,3.2078,2743.0,2742.9,0.72904]
[1739554367883,3.4069,2743.4,2742.6,3.2078]
[1739554368081,40.8,2742.9,2742.7,1.32118]
[1739554368379,3.4069,2743.4,2742.7,1.32118]
[1739554368380,0.72903,2743.0,2742.7,0.5921]
[1739554368586,0.729,2743.1,2742.7,0.5921]
[1739554368778,40.8,2742.8,2742.7,1.32119]
[1739554368981,40.8,2742.8,2742.7,0.5921]
[1739554370585,0.7291,2742.7,2742.6,0.00546996]
[1739554370885,0.9282,2742.7,2742.6,0.00546996]
[1739554371985,41.7282,2742.7,2742.6,0.00546996]
[1739554372192,42.7031,2742.7,2741.7,0.555]
[1739554372378,0.72939,2741.6,2741.5,0.5373]
[1739554372583,0.72945,2741.4,2741.2,0.72948]
[1739554372784,6.74789087,2741.8,2741.1,4.3001]
[1739554373091,41.52948,2741.3,2741.1,5.02961]
[1739554373390,3.54009087,2741.2,2740.9,0.00546996]
[1739554373583,0.72955,2741.0,2740.9,0.00546996]
[1739554375693,0.72955,2741.0,2740.2,0.5373]
[1739554375694,0.72973,2740.4,2740.2,0.5373]
[1739554375987,0.72973,2740.3,2739.9,4.50253]
[1739554376289,0.72973,2740.3,2740.0,0.72981]
[1739554376491,0.72976,2740.2,2739.9,4.50253]
[1739554376785,0.72975,2740.3,2740.0,0.72981]
[1739554377089,0.72973,2740.4,2740.0,0.72981]
[1739554377285,0.72971,2740.4,2739.9,3.7727]
[1739554377589,0.72971,2740.4,2740.1,0.72977]
[1739554377786,3.54009087,2740.5,2739.9,3.7727]
[1739554377991,0.72973,2740.4,2740.1,0.72978]
[1739554378287,3.54009087,2740.5,2739.9,3.7727]
[1739554378591,0.72975,2740.3,2740.0,0.72981]
[1739554378890,3.54009087,2740.5,2739.9,3.7727]
[1739554379091,0.72972,2740.4,2740.1,0.72977]
[1739554379488,3.54009087,2740.5,2739.9,3.7727]
[1739554379887,3.2078,2740.7,2740.2,3.2078]
[1739554380090,3.93744,2740.7,2740.4,0.72968]
[1739554380282,0.72964,2740.7,2740.4,0.72971]
[1739554380590,44.0078,2741.0,2740.2,3.2078]
[1739554380791,41.52956,2741.0,2740.7,0.72961]
[1739554380982,40.8,2741.0,2740.8,3.2078]
[1739554381194,0.00543498,2741.5,2740.8,3.2078]
[1739554381389,0.00543498,2741.5,2740.9,0.5707]
[1739554381592,0.7295,2741.2,2740.9,4.50806]
[1739554381786,40.8,2741.4,2740.9,3.7785]
[1739554381995,40.8,2741.4,2741.0,0.72954]
[1739554382290,0.7295,2741.2,2740.9,4.50806]
[1739554382493,40.8,2741.4,2740.9,3.7785]
[1739554382494,0.72955,2741.0,2740.9,3.7785]
[1739554382694,3.2078,2741.3,2740.8,1.704]
[1739554382897,3.2078,2741.3,2740.6,0.5374]
[1739554383200,0.72949,2741.2,2741.0,0.72953]
[1739554384095,3.2078,2741.3,2740.9,0.72956]
[1739554384400,0.72949,2741.2,2741.0,0.72953]
[1739554384700,3.2078,2741.3,2740.7,3.2078]
[1739554384895,0.72952,2741.2,2740.9,0.72955]
[1739554385096,3.2078,2741.3,2740.7,3.2078]
[1739554385297,0.72949,2741.2,2741.0,0.72953]
[1739554385496,0.72949,2741.2,2741.0,0.72954]
[1739554386201,0.72952,2741.2,2741.0,0.72954]
[1739554386699,1.82374,2741.2,2740.7,3.93743]
[1739554386900,3.2078,2741.3,2740.7,3.2078]
[1739554387101,0.72957,2740.9,2740.8,0.7296]
[1739554387594,0.7296,2740.8,2740.7,3.93742]
[1739554388189,3.2078,2741.0,2740.5,0.72968]
[1739554388394,0.7297,2740.5,2740.4,0.7297]
[1739554388594,0.72971,2740.4,2740.3,0.5707]
[1739554388793,44.0078,2740.4,2739.9,6.0696]
[1739554388994,40.8,2740.4,2739.9,6.0696]
[1739554389194,0.72974,2740.3,2740.2,0.72974]
[1739554389396,40.8,2740.4,2739.9,6.0696]
[1739554389604,0.7298,2740.1,2740.0,0.7298]
[1739554390101,40.8,2740.4,2740.0,0.72979]
[1739554390304,0.7298,2740.1,2739.9,6.79942]
[1739554390489,40.8,2740.4,2739.9,6.79942]
[1739554390490,40.8,2740.4,2739.9,6.0696]
[1739554390695,0.72981,2740.0,2739.9,0.5928]
[1739554391606,0.72981,2740.0,2739.9,1.32264]
[1739554391797,0.72981,2740.0,2739.9,0.5928]
[1739554392802,0.72984,2739.9,2739.8,0.54276996]
[1739554393198,0.72984,2739.9,2739.8,0.00546996]
[1739554396798,41.52984,2739.9,2739.8,0.00546996]
[1739554400001,47.52984,2739.9,2739.8,9.96e-06]
[1739554400796,49.23384,2739.9,2739.8,9.96e-06]
[1739554400997,43.23384,2739.9,2739.8,9.96e-06]
[1739554401406,47.52984,2739.9,2739.8,9.96e-06]
[1739554401601,43.23384,2739.9,2739.8,9.96e-06]
[1739554403411,49.23384,2739.9,2739.8,9.96e-06]
[1739554403909,43.23384,2739.9,2739.8,9.96e-06]
[1739554404713,41.52984,2739.9,2739.8,9.96e-06]
[1739554405802,40.8,2739.9,2739.8,9.96e-06]
[1739554406010,41.52984,2739.9,2739.8,0.72987996]
[1739554406510,41.52984,2739.9,2739.8,9.96e-06]
[1739554406914,41.52984,2739.9,2739.8,0.72987996]
[1739554407208,40.8,2739.9,2739.8,0.72987996]
[1739554407407,41.52984,2739.9,2739.8,9.96e-06]
[1739554410210,47.52984,2739.9,2739.8,9.96e-06]
[1739554411726,41.52984,2739.9,2739.8,9.96e-06]
[1739554412932,47.52984,2739.9,2739.8,9.96e-06]
[1739554413532,41.52984,2739.9,2739.8,9.96e-06]
[1739554414425,41.52984,2739.9,2739.8,0.54890996]
[1739554414733,40.8,2739.9,2739.8,1.27877996]
[1739554414923,40.8,2739.9,2739.8,2.98277996]
[1739554415422,0.00546996,2740.1,2740.0,0.72981]
[1739554415635,3.2078,2740.6,2740.0,3.9376]
[1739554415932,0.72975,2740.3,2740.1,0.72978]
[1739554416234,0.72972,2740.4,2740.2,0.72975]
[1739554416437,3.93746,2740.6,2740.0,3.2078]
[1739554416729,0.00546996,2740.6,2740.3,3.54009087]
[1739554416930,0.72952,2741.1,2740.4,3.7638]
[1739554417231,0.72957,2741.0,2740.7,3.93741]
[1739554417434,3.2078,2741.2,2740.7,3.2078]
[1739554417435,40.8,2740.9,2740.7,3.2078]
[1739554417729,40.8,2740.9,2740.8,0.7296]
[1739554417934,3.2078,2741.8,2740.8,1.704]
[1739554418122,0.00542502,2741.1,2741.0,0.72955]
[1739554418431,3.2078,2741.8,2741.1,0.72952]
[1739554418635,0.7294,2741.6,2741.1,0.72952]
[1739554419028,40.8,2741.5,2741.1,0.72952]
[1739554419734,40.8,2741.5,2741.2,0.5812]
[1739554419935,40.8,2741.5,2741.2,1.1184]
[1739554420337,41.52942,2741.5,2741.2,1.1184]
[1739554421136,0.72947,2741.3,2741.2,1.1184]
[1739554422336,3.2078,2741.5,2741.0,0.00546996]
[1739554422337,0.72952,2741.1,2741.0,0.00546996]
[1739554423938,0.72982,2740.0,2739.8,3.2078]
[1739554424144,0.72983,2740.0,2739.7,0.5388]